bitfinex-derivatives/quotes_ETHF0:USTF0_20260115
["timestamp","ask_amount","ask_price","bid_price","bid_amount"]
[1768475029761,0.14853,3367.2,3365.5,0.00445898]
[1768475029762,2.19846065,3366.6,3365.5,0.00445898]
[1768475029953,0.86283628,3366.5,3365.5,0.00445898]
[1768475030260,0.86261785,3366.4,3365.5,0.00445898]
[1768475030560,1.33562437,3366.6,3365.5,0.00445898]
[1768475030746,0.86323553,3366.5,3365.5,0.00445898]
[1768475030949,1.33562437,3366.6,3365.5,0.00445898]
[1768475031158,0.86323553,3366.5,3365.5,0.00445898]
[1768475031360,1.33562437,3366.6,3365.5,0.00445898]
[1768475031660,0.8628947,3366.5,3365.5,0.00445898]
[1768475031865,1.17731627,3366.2,3365.2,0.00236396]
[1768475032961,1.17731627,3366.2,3365.4,0.00445898]
[1768475033354,0.00445898,3366.1,3365.2,0.00236396]
[1768475033555,0.14617756,3366.1,3364.5,0.14911993]
[1768475033861,0.14617756,3366.1,3364.3,2.81020856]
[1768475034060,0.14171858,3365.9,3364.2,0.14866]
[1768475034362,1.00384851,3365.8,3364.7,0.00445898]
[1768475034557,0.86128016,3365.7,3364.7,0.00745704]
[1768475034762,0.14171858,3365.7,3364.7,0.00745704]
[1768475044672,0.14171858,3365.7,3364.2,0.14866]
[1768475045370,1.31903485,3365.4,3363.7,0.14911993]
[1768475045566,1.31903485,3365.4,3363.7,0.15279519]
[1768475045871,1.32223707,3365.4,3364.2,0.00445898]
[1768475047171,0.00320222,3365.4,3364.2,0.00445898]
[1768475057577,1.17875647,3365.2,3364.2,0.00445898]
[1768475062078,1.18195869,3365.4,3364.2,0.00445898]
[1768475062280,0.86099653,3365.3,3364.2,0.00445898]
[1768475062478,0.86099653,3365.2,3364.2,0.00445898]
[1768475062680,1.18195869,3365.4,3364.2,0.00445898]
[1768475062881,0.86137877,3365.3,3364.2,0.00445898]
[1768475063178,0.86137877,3365.2,3364.2,0.00445898]
[1768475063383,1.18195869,3365.4,3364.2,0.00445898]
[1768475063573,0.8620281,3365.3,3364.2,0.00445898]
[1768475063771,0.8620281,3365.2,3364.2,0.00445898]
[1768475066374,0.8620281,3365.2,3364.2,1.18321545]
[1768475066574,1.18195869,3365.4,3364.2,0.00445898]
[1768475066776,0.86213255,3365.3,3364.2,0.00445898]
[1768475067071,0.86213255,3365.2,3364.2,0.00445898]
[1768475067269,1.18195869,3365.4,3364.2,0.00445898]
[1768475067474,0.86225808,3365.3,3364.2,0.00445898]
[1768475067671,1.17875647,3365.1,3364.2,0.00445898]
[1768475067883,1.17875647,3364.8,3364.2,0.00445898]
[1768475068074,1.17875647,3364.2,3363.7,0.00367526]
[1768475068789,1.17875647,3364.2,3363.5,0.14869]
[1768475069176,1.18321545,3364.2,3363.5,0.14869]
[1768475069684,1.18321545,3364.2,3363.5,0.1513069]
[1768475069981,0.00445898,3364.2,3363.5,0.1513069]
[1768475070382,0.00445898,3364.2,3363.5,0.0026169]
[1768475070593,1.18321545,3364.2,3363.5,0.0026169]
[1768475070793,0.00445898,3364.2,3363.5,0.0026169]
[1768475072385,1.18321545,3364.2,3363.5,0.0026169]
[1768475072579,1.17875647,3364.0,3363.5,0.0026169]
[1768475072892,0.00445898,3364.2,3363.1,0.14871]
[1768475073791,0.00445898,3364.2,3363.1,0.15196269]
[1768475074382,1.17875647,3364.1,3363.1,0.15196269]
[1768475075092,0.00445898,3364.2,3363.1,0.15196269]
[1768475075284,1.18321545,3364.2,3363.1,0.15196269]
[1768475075486,1.18321545,3364.2,3363.3,0.00445898]
[1768475076891,1.17875647,3364.0,3363.3,0.00445898]
[1768475077390,1.18321545,3364.2,3363.3,0.00445898]
[1768475079593,1.17875647,3364.0,3363.3,0.00445898]
[1768475079788,1.17875647,3363.8,3363.1,0.15196269]
[1768475080998,1.17875647,3364.0,3363.1,0.15196269]
[1768475082699,1.17875647,3364.0,3363.2,0.00297264]
[1768475084098,0.00445898,3364.2,3363.2,0.00297264]
[1768475084800,1.17875647,3363.9,3363.2,0.00297264]
[1768475085304,1.17875647,3363.9,3363.1,0.00325269]
[1768475086405,1.17875647,3363.7,3363.1,0.00325269]
[1768475086604,1.17875647,3363.7,3362.6,0.14873]
[1768475087608,1.17875647,3363.7,3362.6,0.15183288]
[1768475088697,1.17875647,3364.1,3362.7,0.14873]
[1768475088893,0.00445898,3364.2,3362.8,1.17875647]
[1768475089099,0.00445898,3364.2,3362.8,1.32747647]
[1768475089999,1.17875647,3364.1,3362.8,1.32747647]
[1768475090396,1.17875647,3363.9,3362.8,0.14872]
[1768475090596,0.00445898,3364.2,3362.8,0.14872]
[1768475090597,1.17875647,3363.7,3362.8,0.14872]
[1768475091010,1.17875647,3363.5,3362.8,0.14872]
[1768475093810,1.17875647,3363.5,3362.6,0.00310288]
[1768475094814,1.17875647,3363.7,3362.6,0.00310288]
[1768475095009,0.14682793,3363.9,3362.6,0.00310288]
[1768475095010,1.17875647,3363.9,3362.6,0.15183288]
[1768475096316,1.17875647,3363.7,3362.6,0.15183288]
[1768475100819,0.14682793,3364.1,3362.6,0.15183288]
[1768475100820,1.17875647,3363.9,3362.6,0.15183288]
[1768475101022,0.00445898,3364.2,3363.0,1.17875647]
[1768475101227,0.00445898,3364.2,3362.9,0.29856421]
[1768475101525,1.17875647,3364.1,3362.9,0.29856421]
[1768475102424,1.17875647,3363.9,3362.9,0.29856421]
[1768475102621,1.17875647,3363.2,3362.6,0.00310288]
[1768475102821,1.17875647,3363.2,3362.3,0.14875]
[1768475103634,1.17875647,3363.4,3362.3,0.14875]
[1768475103925,1.17875647,3363.4,3362.3,0.15170109]
[1768475104111,1.17875647,3362.7,3361.7,3.72935818]
[1768475104517,1.17875647,3362.7,3361.6,0.14984421]
[1768475104718,0.00445898,3362.5,3361.7,0.14877]
[1768475105236,0.00819633,3362.5,3361.7,0.15142943]
[1768475106825,0.14682793,3363.8,3362.1,1.32860068]
[1768475107030,1.17875647,3363.5,3362.1,0.14984421]
[1768475107224,1.17875647,3363.3,3362.1,1.32860068]
[1768475107618,1.17875647,3363.3,3362.1,0.14984421]
[1768475107820,1.18259168,3363.3,3362.1,0.14984421]
[1768475108121,0.00445898,3363.0,3362.1,0.14984421]
[1768475108621,0.00445898,3363.0,3362.1,0.29860421]
[1768475108821,0.00445898,3363.0,3362.2,0.14984421]
[1768475109030,0.00209502,3363.0,3362.2,0.14984421]
[1768475110636,0.00383521,3363.3,3362.3,0.14984421]
[1768475111129,0.00383521,3363.3,3361.7,0.00265943]
[1768475111130,0.00383521,3363.3,3362.4,0.29858421]
[1768475111723,0.00445898,3363.2,3362.4,0.29858421]
[1768475113235,0.00445898,3363.2,3362.4,0.14984421]
[1768475113428,0.00445898,3363.2,3362.5,1.32860068]
[1768475114128,0.00445898,3363.2,3362.6,0.14873]
[1768475114435,0.14682793,3364.2,3362.6,0.29857421]
[1768475114634,1.17875647,3364.0,3362.6,0.29857421]
[1768475115433,1.17875647,3363.7,3362.6,0.29857421]
[1768475115735,1.17875647,3363.4,3362.6,0.29857421]
[1768475115939,1.17875647,3363.7,3362.6,0.29857421]
[1768475116136,0.00252924,3364.0,3362.6,0.29857421]
[1768475116137,1.17875647,3363.8,3362.6,0.29857421]
[1768475116444,0.00445898,3363.5,3362.6,0.29857421]
[1768475118635,0.00445898,3363.5,3362.6,0.14873]
[1768475118926,1.17875647,3363.4,3361.9,0.14984421]
[1768475119129,1.17875647,3363.4,3361.8,1.17875647]
[1768475119130,1.17875647,3363.4,3362.1,0.29859421]
[1768475119436,0.00445898,3363.5,3362.1,0.29859421]
[1768475119636,0.00445898,3363.5,3362.2,0.14984421]
[1768475120640,1.18005729,3363.4,3362.2,0.14984421]
[1768475121633,0.00445898,3363.5,3362.2,0.14984421]
[1768475124341,0.00445898,3363.5,3362.2,0.29859421]
[1768475124534,0.00445898,3363.5,3362.5,0.13626709]
[1768475124842,0.00445898,3363.5,3362.7,0.14072607]
[1768475125042,1.18005729,3363.3,3362.2,0.13626709]
[1768475125243,0.00445898,3363.5,3362.5,0.14873]
[1768475125438,0.00445898,3363.5,3362.2,0.13626709]
[1768475125634,1.18005729,3363.3,3362.2,0.13626709]
[1768475126342,1.18005729,3363.3,3362.4,0.00445898]
[1768475127345,1.18005729,3363.4,3362.4,0.00445898]
[1768475128749,1.18005729,3363.0,3361.9,0.14876]
[1768475129533,1.18005729,3363.0,3361.2,0.14879]
[1768475129739,1.18005729,3362.6,3361.8,0.00445898]
[1768475130655,1.18005729,3362.6,3361.8,0.007951]
[1768475131148,1.18005729,3362.6,3361.2,0.14879]
[1768475131951,0.13687977,3362.9,3361.2,0.14879]
[1768475132147,0.85547151,3362.8,3361.2,0.14879]
[1768475132451,0.13687977,3362.9,3361.2,0.28808635]
[1768475132753,0.13687977,3362.9,3361.3,0.13626709]
[1768475132951,0.13687977,3362.9,3361.3,0.28505709]
[1768475137249,0.13687977,3362.6,3361.3,0.14879]
[1768475137749,3.25793706,3363.0,3361.3,0.14879]
[1768475137949,0.85425684,3362.9,3361.3,0.14879]
[1768475138150,3.25793706,3363.0,3361.3,0.14879]
[1768475138850,1.18005729,3362.7,3361.3,0.14879]
[1768475140443,1.31693706,3362.7,3361.3,0.14879]
[1768475141356,0.13687977,3362.6,3361.3,0.14879]
[1768475144357,1.18005729,3362.3,3361.3,0.14879]
[1768475146055,1.938,3362.9,3361.3,0.14879]
[1768475146955,1.31693706,3363.0,3361.3,0.28505709]
[1768475147155,1.31693706,3363.0,3361.4,0.13626709]
[1768475147352,0.85383679,3362.9,3361.5,0.13626709]
[1768475147550,1.18005729,3363.4,3361.7,0.13626709]
[1768475147855,0.85331225,3363.3,3361.7,0.13626709]
[1768475148055,0.85331225,3363.2,3361.7,0.13626709]
[1768475148252,1.18005729,3363.4,3361.7,0.13626709]
[1768475148454,0.85354687,3363.3,3361.7,0.13626709]
[1768475148654,0.85354687,3363.2,3361.7,0.13626709]
[1768475148854,1.18005729,3363.4,3361.7,0.13626709]
[1768475149058,0.85355006,3363.3,3361.7,0.13626709]
[1768475149260,0.85355006,3363.2,3361.7,0.13626709]
[1768475149463,1.18005729,3363.4,3361.7,0.13626709]
[1768475149766,0.85374722,3363.3,3361.7,0.28503709]
[1768475150064,0.85374722,3363.2,3361.7,0.28503709]
[1768475150363,1.18005729,3363.4,3361.7,0.28503709]
[1768475150573,0.85397566,3363.3,3361.7,0.14877]
[1768475150865,0.85397566,3363.2,3361.7,0.14877]
[1768475151062,1.31693706,3363.4,3361.7,0.14877]
[1768475151253,0.8539573,3363.3,3361.7,0.14877]
[1768475151455,0.8539573,3363.2,3361.7,0.14877]
[1768475151655,1.31693706,3363.4,3361.7,0.14877]
[1768475151854,0.85408342,3363.3,3361.7,0.14877]
[1768475152066,0.85408342,3363.2,3361.7,0.14877]
[1768475152365,0.85422693,3363.1,3361.7,0.14877]
[1768475152552,1.18005729,3363.7,3362.0,0.17812575]
[1768475152761,0.85430934,3363.4,3362.0,0.17812575]
[1768475153060,3.12205729,3363.7,3362.0,0.17812575]
[1768475153268,0.85431281,3363.4,3362.0,0.17812575]
[1768475153461,3.12205729,3363.7,3362.0,0.17812575]
[1768475153659,0.85443376,3363.4,3362.0,0.17812575]
[1768475153865,3.12205729,3363.7,3362.0,0.17812575]
[1768475154163,0.85443452,3363.4,3362.0,0.17812575]
[1768475154358,3.12205729,3363.7,3362.0,0.17812575]
[1768475154559,0.85456465,3363.4,3362.0,0.17812575]
[1768475154760,3.12205729,3363.7,3362.0,0.17812575]
[1768475154960,0.85456459,3363.4,3362.0,0.17812575]
[1768475155266,0.8547169,3363.3,3362.0,0.17812575]
[1768475155566,3.12205729,3363.7,3362.0,0.17812575]
[1768475155762,0.85471691,3363.4,3362.0,0.17812575]
[1768475155962,0.85471691,3363.3,3362.0,0.17812575]
[1768475156159,0.17082831,3363.2,3361.9,0.14876]
[1768475156360,1.18005729,3362.9,3361.9,0.14876]
[1768475161672,1.18005729,3362.9,3361.4,0.17812575]
[1768475161875,1.18005729,3362.5,3361.2,0.15181926]
[1768475166770,0.17082831,3362.8,3361.2,0.15181926]
[1768475167070,1.02575294,3362.7,3361.2,0.15181926]
[1768475167270,0.17082831,3362.7,3361.2,0.15181926]
[1768475167972,0.14871,3363.2,3361.2,0.32994501]
[1768475167973,1.18005729,3362.9,3361.2,0.32994501]
[1768475168172,0.85491699,3362.8,3361.2,0.32994501]
[1768475168469,0.85491699,3362.7,3361.3,0.17812575]
[1768475168670,1.18005729,3362.9,3361.3,0.17812575]
[1768475168976,0.85491118,3362.8,3361.3,0.17812575]
[1768475169173,1.18005729,3362.9,3361.3,0.17812575]
[1768475169373,0.85494154,3362.8,3361.3,0.17812575]
[1768475169671,1.18005729,3362.9,3361.3,0.17812575]
[1768475169868,0.85496893,3362.8,3361.3,0.17812575]
[1768475170070,1.18005729,3362.9,3361.3,0.17812575]
[1768475170271,0.85497368,3362.8,3361.3,0.32691575]
[1768475170570,1.18005729,3362.9,3361.3,0.32691575]
[1768475170867,0.85500867,3362.8,3361.3,0.32691575]
[1768475171062,1.18005729,3362.9,3361.3,0.32691575]
[1768475171262,0.85500867,3362.8,3361.3,0.32691575]
[1768475171463,1.18005729,3362.9,3361.3,0.32691575]
[1768475171671,0.85504776,3362.8,3361.3,0.32691575]
[1768475171858,0.17082831,3363.1,3361.3,0.32691575]
[1768475171859,0.17082831,3363.1,3361.4,0.14879]
[1768475172065,0.17528729,3363.5,3361.7,0.17812575]
[1768475172260,0.85514618,3363.4,3361.7,0.17812575]
[1768475172475,0.85514618,3363.3,3361.7,0.17812575]
[1768475172676,0.85514618,3363.2,3361.7,0.17812575]
[1768475172976,1.35534458,3363.5,3361.8,0.17812575]
[1768475173174,0.85548686,3363.4,3361.8,0.17812575]
[1768475173473,0.85548686,3363.3,3361.8,0.17812575]
[1768475173674,0.85548686,3363.2,3361.8,0.17812575]
[1768475173974,1.35534458,3363.5,3361.8,0.17812575]
[1768475174174,0.85553625,3363.4,3361.8,0.17812575]
[1768475174470,0.85553625,3363.3,3361.8,0.17812575]
[1768475174672,0.85553625,3363.2,3361.9,0.14876]
[1768475174874,1.35534458,3363.5,3361.9,0.14876]
[1768475175066,0.85558395,3363.4,3361.9,0.14876]
[1768475175267,0.85558395,3363.3,3361.9,0.14876]
[1768475175576,0.85558395,3363.2,3361.9,0.14876]
[1768475175769,1.35534458,3363.5,3361.9,0.14876]
[1768475176072,0.85564803,3363.4,3361.9,0.32688575]
[1768475176266,0.85564803,3363.3,3361.9,0.32688575]
[1768475176466,0.85564803,3363.2,3361.9,0.32688575]
[1768475176669,1.35534458,3363.5,3361.9,0.32688575]
[1768475176869,0.85550375,3363.4,3361.9,0.32688575]
[1768475177069,0.85550375,3363.3,3361.9,0.32688575]
[1768475177275,0.85550375,3363.2,3361.9,0.32688575]
[1768475177476,1.35534458,3363.5,3361.9,0.32688575]
[1768475177678,0.85549602,3363.4,3361.9,0.32688575]
[1768475177865,0.85549602,3363.3,3361.9,0.32688575]
[1768475178072,0.85549602,3363.2,3361.9,0.32688575]
[1768475178275,0.17528729,3363.5,3361.9,0.32688575]
[1768475178472,0.85075932,3363.4,3361.9,0.32688575]
[1768475178776,0.85075932,3363.3,3361.9,0.32688575]
[1768475178977,0.85075932,3363.2,3361.9,0.32688575]
[1768475179178,1.35534458,3363.5,3361.9,0.32688575]
[1768475179479,1.18014581,3363.1,3361.9,0.32688575]
[1768475183578,0.00445898,3363.5,3362.3,0.14874]
[1768475183984,1.18014581,3363.4,3362.3,0.14874]
[1768475185381,1.18014581,3363.2,3362.3,0.14874]
[1768475185579,1.18014581,3363.0,3361.6,0.23149565]
[1768475185880,1.18014581,3361.9,3360.8,2.976]
[1768475186085,1.18014581,3361.7,3360.6,3.87817818]
[1768475186284,1.18014581,3361.7,3360.6,0.14882]
[1768475186475,0.00445898,3361.8,3360.6,1.32896581]
[1768475187380,0.00445898,3361.8,3360.8,1.18014581]
[1768475187580,2.976,3363.8,3361.1,1.18014581]
[1768475187581,1.18014581,3362.7,3361.1,1.18014581]
[1768475187980,1.18014581,3362.7,3361.1,1.32894581]
[1768475188183,1.42161675,3362.8,3361.4,1.18014581]
[1768475188487,0.24147094,3362.8,3361.4,1.18014581]
[1768475188674,1.18014581,3363.0,3361.5,1.41164146]
[1768475188986,1.18014581,3362.8,3361.5,1.18014581]
[1768475189685,0.00445898,3362.5,3361.4,0.14879]
[1768475189883,0.00445898,3362.5,3361.6,0.00445898]
[1768475191088,1.18460479,3362.5,3361.6,0.00445898]
[1768475191283,0.00445898,3362.5,3361.6,1.18460479]
[1768475191496,0.00096696,3362.5,3361.6,1.18460479]
[1768475193294,0.00096696,3362.5,3361.6,0.00445898]
[1768475200895,1.18111277,3362.5,3361.6,0.00445898]
[1768475201097,1.42258371,3362.5,3361.6,0.00445898]
[1768475201795,1.18014581,3362.6,3361.6,0.00445898]
[1768475201996,1.18014581,3362.4,3361.6,0.00445898]
[1768475202196,1.42161675,3362.1,3361.2,0.00302926]
[1768475202394,1.18014581,3363.0,3361.2,0.00302926]
[1768475202395,1.18014581,3362.4,3361.2,0.00302926]
[1768475202691,0.24147094,3362.5,3361.3,1.18014581]
[1768475202899,0.24147094,3363.0,3361.6,1.18014581]
[1768475203198,0.00445898,3362.6,3361.6,1.18014581]
[1768475203893,0.00445898,3362.6,3361.9,1.18014581]
[1768475204099,0.00445898,3362.6,3361.7,1.32891581]
[1768475204902,0.00445898,3362.6,3361.8,0.00445898]
[1768475205399,0.00445898,3362.6,3361.8,1.18460479]
[1768475205800,1.18014581,3363.3,3361.8,1.18460479]
[1768475207007,0.00445898,3362.9,3361.8,1.18460479]
[1768475208000,0.24147094,3363.9,3362.4,1.18014581]
[1768475208202,1.18014581,3363.4,3362.1,0.14875]
[1768475208406,1.18014581,3363.0,3362.1,0.14875]
[1768475208600,1.18014581,3363.0,3361.8,0.00445898]
[1768475210409,0.00445898,3362.7,3361.8,0.00445898]
[1768475210712,1.18014581,3362.3,3361.8,0.00445898]
[1768475211009,1.18014581,3362.5,3361.8,0.00445898]
[1768475212405,1.18014581,3362.3,3361.8,0.00445898]
[1768475212707,1.18014581,3362.3,3360.9,1.32895581]
[1768475213010,0.22407871,3362.7,3361.1,1.18014581]
[1768475213011,1.39976554,3362.5,3361.1,1.18014581]
[1768475215614,0.21961973,3362.4,3361.0,0.1488]
[1768475215910,0.21961973,3362.6,3361.5,0.00445898]
[1768475217120,0.21961973,3362.6,3361.5,1.18460479]
[1768475218007,0.21961973,3362.6,3361.5,0.00445898]
[1768475218618,1.39976554,3362.5,3361.5,0.00445898]
[1768475219916,0.21961973,3362.5,3361.5,0.00445898]
[1768475220416,0.00445898,3362.7,3361.6,1.18014581]
[1768475220620,0.00445898,3362.7,3362.0,1.18014581]
[1768475221219,0.00445898,3362.7,3361.6,0.14878]
[1768475224525,0.21961973,3362.5,3361.5,0.00445898]
[1768475224825,1.18014581,3362.2,3361.5,0.00445898]
[1768475225017,0.21961973,3362.5,3361.5,0.00445898]
[1768475225018,1.39976554,3362.5,3361.5,0.00445898]
[1768475225609,0.21961973,3362.5,3361.5,0.00445898]
[1768475225814,0.00445898,3362.7,3361.5,1.18460479]
[1768475226926,0.00445898,3362.7,3361.8,1.18014581]
[1768475227428,0.00445898,3362.7,3361.6,1.18014581]
[1768475228029,0.21961973,3361.6,3360.4,3.72935818]
[1768475228220,0.21961973,3361.6,3360.0,1.18014581]
[1768475228417,0.21961973,3362.2,3360.6,1.18014581]
[1768475228924,1.18014581,3361.7,3360.3,0.14883]
[1768475229126,0.22407871,3361.6,3360.9,0.00445898]
[1768475230721,0.00445898,3361.6,3360.9,0.00445898]
[1768475233822,0.21961973,3362.6,3360.9,0.00445898]
[1768475234925,0.00445898,3362.1,3361.7,0.3972682]
[1768475236025,0.00445898,3362.1,3361.9,0.3972682]
[1768475236328,0.22293226,3362.6,3361.9,0.3972682]
[1768475237037,0.22293226,3362.6,3361.2,0.1488]
[1768475237228,0.00445898,3362.1,3361.2,0.1488]
[1768475237535,0.00331253,3362.6,3361.5,0.14878]
[1768475238627,0.00445898,3362.4,3361.5,0.14878]
[1768475239928,0.00445898,3362.4,3360.9,0.00445898]
[1768475240129,0.22407871,3362.4,3360.9,0.00445898]
[1768475240431,0.21961973,3362.2,3360.9,0.00445898]
[1768475240829,0.21961973,3362.2,3359.9,3.72935818]
[1768475240830,0.18232386,3361.4,3359.9,3.72935818]
[1768475241020,0.18232386,3361.4,3358.9,3.92857511]
[1768475241420,0.18232386,3361.2,3358.9,0.19921693]
[1768475241622,0.18232386,3361.2,3359.0,0.19921693]
[1768475241817,0.18232386,3361.2,3359.6,0.14887]
[1768475242016,0.18232386,3361.2,3359.8,0.00445898]
[1768475242623,0.18232386,3361.7,3359.8,0.00445898]
[1768475243026,0.00445898,3361.1,3359.8,0.00445898]
[1768475244524,0.18232386,3361.7,3360.2,0.14884]
[1768475244930,0.18232386,3361.7,3359.8,0.00445898]
[1768475245739,0.00297264,3361.1,3359.8,0.00445898]
[1768475245927,0.00297264,3361.1,3359.8,0.15331898]
[1768475250426,0.19887265,3361.1,3359.8,0.15331898]
[1768475251241,0.19887265,3361.1,3359.8,0.00445898]
[1768475256336,0.19887265,3361.1,3358.4,2.13007646]
[1768475256539,0.19590001,3361.0,3357.9,5.24664788]
[1768475256940,0.19590001,3361.0,3358.7,0.14891]
[1768475257240,0.19590001,3361.0,3358.7,0.15142694]
[1768475257440,0.34471001,3361.0,3359.5,0.00445898]
[1768475257746,0.19590001,3360.8,3359.5,0.00445898]
[1768475258246,0.19590001,3360.8,3358.9,0.1489]
[1768475259246,0.19590001,3360.8,3359.5,0.00445898]
[1768475260332,0.19590001,3360.8,3358.9,0.1489]
[1768475261145,0.19590001,3360.7,3358.9,0.1489]
[1768475261646,0.19590001,3360.7,3359.1,0.14889]
[1768475264145,0.19590001,3360.7,3359.6,0.00445898]
[1768475271542,0.19590001,3360.7,3359.1,0.14889]
[1768475271749,0.22752633,3360.5,3359.1,0.14889]
[1768475271954,1.0,3361.0,3359.1,6.0]
[1768475272257,1.0,3361.0,3359.8,0.14886]
[1768475273351,1.0,3361.0,3359.9,0.14885]
[1768475273559,1.0,3361.0,3359.4,0.16971859]
[1768475273950,1.0,3361.0,3360.0,0.14885]
[1768475275362,0.00297264,3361.1,3360.0,0.14885]
[1768475280267,0.00297264,3361.1,3359.5,0.2362993]
[1768475280565,0.22752633,3361.6,3360.4,0.14883]
[1768475281664,0.00445898,3361.3,3360.4,0.14883]
[1768475281858,0.00445898,3361.3,3360.7,0.00445898]
[1768475282365,0.22752633,3361.6,3360.7,0.00445898]
[1768475283268,0.00445898,3361.5,3360.7,0.00445898]
[1768475284567,1.924,3362.3,3360.7,0.00445898]
[1768475284568,0.22752633,3362.0,3360.7,0.00445898]
[1768475285568,0.00445898,3361.7,3360.7,0.00445898]
[1768475287577,0.23198531,3361.7,3360.7,0.00445898]
[1768475295487,0.23198531,3361.7,3360.7,0.00445898]
[1768475303282,0.23198531,3361.7,3360.0,0.14885]
[1768475303581,0.36781477,3361.5,3360.0,0.14885]
[1768475304383,0.36781477,3361.3,3360.0,0.14885]
[1768475305779,0.36781477,3361.3,3360.3,0.00445898]
[1768475308681,0.36781477,3361.3,3360.0,0.14885]
[1768475308882,0.36781477,3361.3,3359.4,0.14887]
[1768475309085,0.36781477,3361.1,3359.7,0.14886]
[1768475309877,0.36781477,3361.1,3360.1,0.00445898]
[1768475315489,0.36781477,3360.8,3360.1,0.00445898]
[1768475320095,2.30581477,3361.3,3360.2,1.18172803]
[1768475321693,2.30581477,3361.3,3360.1,1.18618701]
[1768475324383,0.36781477,3361.3,3360.3,1.18172803]
[1768475325992,0.37227375,3361.7,3360.5,1.18172803]
[1768475326199,0.37227375,3361.7,3360.6,1.33053803]
[1768475328399,0.37227375,3361.7,3360.6,0.14881]
[1768475332589,1.55400178,3361.7,3360.6,0.14881]
[1768475333093,0.48592957,3361.6,3360.6,0.14881]
[1768475335400,0.48592957,3361.6,3360.7,0.1488]
[1768475336401,0.00445898,3361.7,3360.7,0.1488]
[1768475340106,0.00445898,3361.7,3361.0,0.14879]
[1768475345602,0.70776096,3362.5,3361.4,1.18172803]
[1768475345897,0.70776096,3362.5,3361.4,0.00374253]
[1768475346299,1.18172803,3362.4,3361.4,0.00374253]
[1768475346698,0.00445898,3362.2,3361.4,0.00374253]
[1768475353108,0.00445898,3362.2,3361.4,0.15251253]
[1768475356116,0.00445898,3362.2,3361.5,1.18172803]
[1768475356913,0.00445898,3362.2,3361.4,0.15251253]
[1768475376634,0.70776096,3362.5,3361.5,0.14877]
[1768475377130,0.51734112,3362.4,3361.4,0.00374253]
[1768475377329,0.51734112,3362.2,3360.5,3.72539684]
[1768475377535,0.51734112,3361.8,3360.5,3.87422684]
[1768475377729,0.51734112,3361.6,3360.5,0.14883]
[1768475378432,0.51734112,3361.6,3360.5,0.15108141]
[1768475384940,0.51734112,3361.4,3360.1,0.0073996]
[1768475404947,0.55864255,3361.0,3360.1,0.0073996]
[1768475409166,0.55864255,3361.0,3359.7,0.14886]
[1768475410063,0.55864255,3361.0,3359.7,0.15154244]
[1768475410561,0.55864255,3361.0,3359.7,0.00268244]
[1768475412460,0.55864255,3360.8,3359.7,0.00268244]
[1768475413064,0.55864255,3360.8,3359.9,0.00445898]
[1768475413270,0.55864255,3360.6,3359.7,0.00268244]
[1768475413869,0.55864255,3359.8,3358.1,5.24664788]
[1768475414061,0.8664355,3359.7,3357.9,0.5426669]
[1768475414254,1.719,3360.2,3358.0,0.5426669]
[1768475414457,1.719,3360.2,3357.8,1.32933078]
[1768475414458,0.00446567,3359.1,3358.6,0.5426669]
[1768475414658,0.00824711,3359.1,3358.6,0.00238666]
[1768475414967,0.00824711,3359.1,3358.5,1e-08]
[1768475415357,0.00824711,3359.1,3358.5,0.54266691]
[1768475415563,1.909,3360.6,3358.5,0.54266691]
[1768475415760,0.88098914,3360.5,3358.5,0.54266691]
[1768475416069,0.88098914,3360.4,3358.5,0.54266691]
[1768475416367,0.88098914,3360.3,3358.5,0.54266691]
[1768475416566,0.00446567,3359.8,3358.5,0.5455642]
[1768475419683,0.00446567,3359.8,3358.8,0.5426669]
[1768475425680,1.18234347,3359.2,3358.5,0.0028973]
[1768475426183,1.18234347,3359.5,3358.5,0.0028973]
[1768475426386,1.18234347,3359.3,3358.5,0.0028973]
[1768475426595,0.00446567,3359.8,3358.5,0.58869467]
[1768475426892,0.00446567,3359.8,3359.0,0.58579737]
[1768475432296,0.00446567,3359.8,3358.6,0.73470737]
[1768475432492,0.00446567,3359.8,3358.7,0.58579737]
[1768475433090,1.18234347,3359.5,3358.7,0.58579737]
[1768475433405,1.18234347,3359.5,3358.5,0.0028973]
[1768475434200,1.18234347,3359.7,3358.5,0.58869467]
[1768475435404,0.00446567,3359.8,3358.5,0.58869467]
[1768475435598,1.18234347,3359.7,3358.5,0.58869467]
[1768475436900,0.00446567,3359.8,3358.5,0.58869467]
[1768475437101,1.18234347,3359.7,3358.5,0.58869467]
[1768475440507,1.18234347,3359.5,3358.5,0.58869467]
[1768475441405,1.18234347,3359.6,3358.5,0.58869467]
[1768475442296,1.18234347,3359.4,3358.5,0.58869467]
[1768475444107,0.00446567,3359.8,3358.5,0.58869467]
[1768475444404,0.00446567,3359.8,3358.7,0.58579737]
[1768475444599,0.00446567,3359.8,3358.7,1.76814084]
[1768475444801,0.00446567,3359.8,3358.8,0.58579737]
[1768475445707,1.18680914,3359.8,3358.8,0.58579737]
[1768475447515,0.00446567,3359.8,3358.8,0.58579737]
[1768475447714,1.18680914,3359.8,3358.8,0.58579737]
[1768475450522,0.00446567,3359.8,3358.8,0.58579737]
[1768475451413,0.00295659,3360.4,3359.2,0.4693377]
[1768475452517,0.00446567,3360.1,3359.2,0.4693377]
[1768475455018,0.00295659,3360.4,3359.6,0.4693377]
[1768475455212,3.09334347,3361.1,3359.6,0.4693377]
[1768475455516,1.18234347,3360.9,3359.6,0.4693377]
[1768475455824,0.88686615,3360.8,3359.6,0.4693377]
[1768475456120,0.88959421,3360.8,3359.6,0.4693377]
[1768475456418,0.00272806,3360.8,3359.6,0.4693377]
[1768475457115,1.18234347,3359.9,3359.4,0.14887]
[1768475457716,1.18234347,3359.9,3358.6,1.18234347]
[1768475457717,1.18234347,3359.9,3358.7,0.1489]
[1768475457932,0.00272806,3360.8,3358.8,0.1489]
[1768475458129,1.18234347,3360.1,3358.8,0.1489]
[1768475459332,1.18234347,3360.1,3358.9,0.4693377]
[1768475460232,1.18234347,3359.6,3358.9,0.4693377]
[1768475460442,1.18234347,3359.4,3358.5,0.0028973]
[1768475463038,1.18234347,3359.7,3358.5,0.0028973]
[1768475463240,0.08457168,3360.5,3358.8,0.4693377]
[1768475463540,1.18234347,3360.2,3358.8,0.4693377]
[1768475465139,2.06857642,3360.1,3358.8,0.4693377]
[1768475465440,1.18234347,3360.1,3358.8,0.4693377]
[1768475466337,1.18234347,3360.1,3358.8,0.6182377]
[1768475466533,1.18234347,3360.1,3358.9,0.4693377]
[1768475469643,1.18234347,3360.1,3358.8,0.1489]
[1768475469644,1.18234347,3359.8,3358.8,0.1489]
[1768475471140,1.18234347,3359.2,3358.5,0.0028973]
[1768475471938,1.18234347,3359.4,3358.5,0.0028973]
[1768475472235,1.18234347,3360.0,3358.5,0.0028973]
[1768475472236,0.02423192,3360.2,3358.5,0.0028973]
[1768475472436,1.18234347,3359.7,3358.5,0.0028973]
[1768475473648,1.18234347,3359.5,3358.5,0.0028973]
[1768475474347,1.18234347,3359.0,3357.7,0.4693377]